bitfinex-derivatives/quotes_SOLF0:USTF0_20241217
["timestamp","ask_amount","ask_price","bid_price","bid_amount"]
[1734453673023,3.66,226.21,226.14,2.2108]
[1734453673233,2.2106,226.17,226.06,0.41866]
[1734453673425,3.0788,226.16,226.06,0.41866]
[1734453674031,5.2895,226.16,226.06,0.41866]
[1734453674229,2.9866,226.15,226.06,0.41866]
[1734453674424,3.66,226.14,226.06,0.41866]
[1734453675022,2.2112,226.11,226.06,2.2116]
[1734453675222,3.66,226.14,225.99,5.30000441]
[1734453675423,3.66,226.14,226.0,4.4491292]
[1734453675623,3.66,226.14,225.99,5.30000441]
[1734453676024,2.211,226.13,225.99,5.30000441]
[1734453676226,3.66,226.14,225.99,5.30000441]
[1734453676424,2.9636,226.12,225.99,5.30000441]
[1734453676830,2.9636,226.12,226.08,2.2114]
[1734453677031,2.9636,226.12,226.01,16.47842718]
[1734453677629,3.66,226.14,226.02,4.44795554]
[1734453677835,3.66,226.14,226.01,16.47842718]
[1734453678132,3.66,226.14,226.02,4.44747235]
[1734453678329,3.66,226.14,226.03,4.44747235]
[1734453678532,3.66,226.14,226.12,2.211]
[1734453678937,3.66,226.14,226.13,2.211]
[1734453679837,5.18900038,226.21,226.16,2.2107]
[1734453679838,3.64,226.17,226.16,2.2107]
[1734453680138,2.8831,226.22,226.09,16.47842718]
[1734453680336,3.64,226.21,226.17,2.2105]
[1734453680534,3.64,226.21,226.09,16.47842718]
[1734453680837,3.64,226.21,226.1,4.44337855]
[1734453681038,3.64,226.21,226.17,2.2106]
[1734453682939,3.64,226.21,226.18,2.2105]
[1734453683236,2.8831,226.22,226.18,2.2105]
[1734453683439,3.64,226.21,226.18,2.2105]
[1734453683637,3.64,226.21,226.14,2.2108]
[1734453683833,3.64,226.21,226.07,4.44640272]
[1734453684036,2.2104,226.19,226.06,5.7582]
[1734453684242,2.2104,226.19,226.06,2.9059]
[1734453685042,5.8503,226.21,226.13,2.2109]
[1734453685240,3.64,226.21,226.13,2.2109]
[1734453685746,3.64,226.21,226.14,2.2108]
[1734453686042,3.64,226.2,226.14,2.2108]
[1734453686443,3.64,226.2,226.06,2.9059]
[1734453686444,3.64,226.23,226.12,16.47842718]
[1734453686636,16.47842718,226.34,226.07,8.50620002]
[1734453686839,3.64,226.28,226.16,16.47842718]
[1734453687338,3.64,226.25,226.22,2.21]
[1734453688039,5.39526609,226.3,226.27,2.2095]
[1734453688346,3.64,226.3,226.16,16.47842718]
[1734453688646,3.64,226.3,226.26,2.2096]
[1734453689043,5.8494,226.3,226.17,3.0755]
[1734453689748,3.64,226.3,226.26,2.2097]
[1734453690041,3.64,226.3,226.17,3.0755]
[1734453690641,3.64,226.3,226.24,2.2098]
[1734453690838,3.64,226.29,226.17,3.0755]
[1734453691844,3.64,226.29,226.2,2.2102]
[1734453692147,3.64,226.29,226.17,3.0755]
[1734453692742,5.35526664,226.31,226.17,3.0755]
[1734453692953,3.64,226.3,226.17,3.0755]
[1734453693150,3.64,226.3,226.25,2.2098]
[1734453694241,3.64,226.3,226.26,2.2096]
[1734453694549,3.64,226.3,226.17,3.0755]
[1734453694951,2.2094,226.29,226.24,2.2098]
[1734453696847,3.64,226.3,226.03,5.69665431]
[1734453697048,3.64,226.3,226.11,16.47842718]
[1734453697049,2.8977,226.28,226.11,16.47842718]
[1734453697441,2.8977,226.28,226.21,2.2102]
[1734453697442,2.2098,226.25,226.21,2.2102]
[1734453697647,3.64,226.24,226.21,2.2102]
[1734453697950,3.64,226.24,226.22,2.2101]
[1734453698149,3.64,226.24,226.14,5.2161684]
[1734453698347,3.64,226.24,226.11,16.47842718]
[1734453698646,3.64,226.24,226.21,2.2101]
[1734453700947,3.64,226.24,226.11,16.47842718]
[1734453701553,3.64,226.24,226.21,2.2101]
[1734453702056,20.11842718,226.24,225.98,4.4248]
[1734453702248,16.47842718,226.19,226.0,3.041]
[1734453702456,6.0308,226.18,226.06,2.2116]
[1734453702653,3.64,226.17,226.06,2.2116]
[1734453703555,2.2112,226.11,226.06,2.2116]
[1734453703750,3.64,226.1,226.06,2.2116]
[1734453703947,3.64,226.1,226.07,2.2115]
[1734453704455,2.2113,226.1,226.05,2.2117]
[1734453704657,3.64,226.09,226.0,3.041]
[1734453704857,3.64,226.08,225.92,3.4876]
[1734453705154,3.64,226.07,225.95,5.27439266]
[1734453705350,3.64,226.06,225.93,19.56592718]
[1734453705549,3.64,226.05,225.93,3.0875]
[1734453705852,2.2121,226.02,225.96,2.2125]
[1734453706045,3.64,226.05,225.89,16.47842718]
[1734453706350,2.2122,226.01,225.89,16.47842718]
[1734453706557,3.1472,226.04,225.89,16.47842718]
[1734453707159,3.1472,226.04,225.93,2.2129]
[1734453707658,2.212,226.02,225.93,2.2129]
[1734453707953,6.0846,226.06,225.9,5.21883261]
[1734453707954,3.62,226.01,225.9,5.21883261]
[1734453708459,3.62,226.01,225.94,2.2128]
[1734453708653,3.1063,226.1,225.93,16.47842718]
[1734453708954,2.2116,226.07,225.93,16.47842718]
[1734453709158,3.62,226.09,225.93,16.47842718]
[1734453709660,16.47842718,226.07,225.91,2.2131]
[1734453709864,16.47842718,226.07,225.9,5.21883261]
[1734453709865,2.2126,225.97,225.9,5.21883261]
[1734453710159,2.2126,225.97,225.85,6.1592]
[1734453710160,5.8326,225.97,225.85,6.1592]
[1734453710756,3.62,225.97,225.91,2.2131]
[1734453710956,3.62,225.97,225.85,6.1592]
[1734453710957,3.62,225.97,225.85,3.0875]
[1734453711259,3.62,225.97,225.87,2.2135]
[1734453711260,2.2129,225.93,225.87,2.2135]
[1734453711455,2.2129,225.93,225.8,0.32925]
[1734453711658,3.62,225.97,225.84,5.29561911]
[1734453711854,2.2132,225.9,225.84,5.29561911]
[1734453712058,3.62,225.89,225.8,0.32925]
[1734453712255,3.62,225.88,225.81,2.2141]
[1734453712558,3.62,225.88,225.8,0.32925]
[1734453712956,2.905,225.97,225.83,16.47842718]
[1734453712957,3.62,225.97,225.83,16.47842718]
[1734453713553,3.62,225.97,225.87,16.47842718]
[1734453713753,2.9618,226.04,225.91,16.47842718]
[1734453714056,3.62,226.01,225.91,16.47842718]
[1734453714456,3.62,226.01,225.95,2.2127]
[1734453714657,3.62,226.02,225.87,16.47842718]
[1734453714963,3.62,226.02,225.88,3.3707]
[1734453715463,5.9397,226.09,225.91,16.47842718]
[1734453715659,5.9397,226.09,225.89,3.0578]
[1734453715660,2.9533,226.11,225.95,16.47842718]
[1734453715964,3.62,226.13,225.95,16.47842718]
[1734453716365,3.62,226.13,225.96,4.44013963]
[1734453716561,5.831,226.13,225.95,16.47842718]
[1734453716863,5.831,226.13,225.96,4.43754126]
[1734453717065,5.831,226.13,225.97,4.43754126]
[1734453717256,3.62,226.13,226.06,2.2116]
[1734453717456,3.62,226.14,226.03,16.47842718]
[1734453719670,5.8309,226.14,226.02,5.25846786]
[1734453719864,3.62,226.14,226.02,5.25846786]
[1734453720265,3.62,226.14,226.07,2.2115]
[1734453721563,5.8309,226.14,226.07,2.2115]
[1734453721767,3.62,226.14,226.05,2.2117]
[1734453721965,2.2114,226.09,226.0,3.1148]
[1734453722171,16.47842718,226.12,226.0,3.1148]
[1734453722366,6.0825,226.13,226.06,2.2116]
[1734453723066,8.2935,226.13,226.07,2.2115]
[1734453723271,3.62,226.12,226.0,3.1148]
[1734453723670,5.8311,226.12,226.0,3.1148]
[1734453723873,3.62,226.12,226.0,3.1148]
[1734453724268,20.09842718,226.12,226.0,3.1148]
[1734453724578,20.09842718,226.12,225.95,16.89532718]
[1734453725076,2.2116,226.07,226.01,2.212]
[1734453725376,2.2116,226.07,225.98,5.33734672]
[1734453725579,2.2115,226.08,226.01,2.2121]
[1734453725776,20.09842718,226.12,226.01,2.2121]
[1734453725973,20.09842718,226.12,225.93,2.9482]
[1734453726371,16.47842718,226.08,225.94,5.34106502]
[1734453726773,3.0511,226.07,225.94,5.34106502]
[1734453726973,3.0511,226.07,225.87,16.47842718]
[1734453726974,16.47842718,226.04,225.87,16.47842718]
[1734453727187,3.62,226.03,225.87,16.47842718]
[1734453727379,2.2123,225.99,225.94,2.2128]
[1734453727578,3.62,226.03,225.87,16.47842718]
[1734453727883,2.2121,226.02,225.95,2.2126]
[1734453728088,3.62,226.03,225.95,2.2126]
[1734453728585,2.2121,226.01,225.95,2.2126]
[1734453729185,2.2123,226.0,225.95,2.2126]
[1734453729584,3.62,226.03,225.93,2.2128]
[1734453729779,2.8556,225.99,225.84,2.9773]
[1734453729984,2.9888,225.98,225.87,2.2135]
[1734453730191,2.2127,225.95,225.83,19.33182718]
[1734453730484,3.62,225.94,225.83,19.33182718]
[1734453730690,3.62,225.94,225.83,24.59803334]
[1734453730884,2.2127,225.95,225.83,24.59803334]
[1734453731090,3.62,225.94,225.83,24.59803334]
[1734453731389,3.62,225.94,225.83,2.8534]
[1734453731390,2.2129,225.93,225.83,2.8534]
[1734453731588,3.62,225.94,225.83,2.8534]
[1734453732090,3.62,225.94,225.76,16.47842718]
[1734453732286,3.62,225.94,225.81,5.36563248]
[1734453732486,2.213,225.93,225.81,5.36563248]
[1734453732788,3.62,225.94,225.76,19.55122718]
[1734453733187,2.2132,225.9,225.84,2.2138]
[1734453733395,16.47842718,225.92,225.76,19.55122718]
[1734453733588,2.2136,225.87,225.81,2.2141]
[1734453733788,3.62,225.86,225.76,3.0728]
[1734453733986,3.62,225.85,225.76,3.0728]
[1734453734189,3.62,225.84,225.72,16.47842718]
[1734453734389,3.62,225.83,225.72,16.47842718]
[1734453734591,3.62,225.82,225.72,16.47842718]
[1734453734988,2.8446,225.87,225.72,21.66731459]
[1734453735191,3.62,225.86,225.72,21.66731459]
[1734453735494,5.8337,225.86,225.8,2.2142]
[1734453735689,2.2137,225.86,225.8,2.2142]
[1734453735890,6.7714,225.97,225.8,16.47842718]
[1734453736090,3.1514,225.97,225.85,16.47842718]
[1734453736394,2.9888,225.98,225.85,16.47842718]
[1734453736593,3.62,225.97,225.85,16.47842718]
[1734453737590,3.62,225.97,225.94,2.2128]
[1734453738096,3.62,225.97,225.96,2.2126]
[1734453739491,3.62,225.97,225.83,4.45527231]
[1734453740003,3.62,225.97,225.84,4.45527231]
[1734453740293,3.62,225.97,225.85,9.85638823]
[1734453740496,3.62,225.97,225.86,4.45527231]
[1734453740695,18.69002718,226.07,225.99,2.2122]
[1734453740894,3.62,226.06,225.89,4.45706261]
[1734453741195,3.62,226.06,225.88,16.47842718]
[1734453741393,2.2118,226.05,225.89,4.4602817]
[1734453741595,2.2118,226.05,225.9,4.4602817]
[1734453741791,3.62,226.06,225.88,16.47842718]
[1734453742093,2.9181,226.08,225.92,16.47842718]
[1734453742289,2.9181,226.08,225.93,7.48418644]
[1734453742490,8.93585679,226.07,226.02,2.2119]
[1734453742789,8.93585679,226.07,225.93,3.024]
[1734453743292,25.41428397,226.07,225.93,3.024]
[1734453743495,8.93585679,226.07,225.93,3.024]
[1734453743790,2.9525,226.09,226.08,2.2114]
[1734453743990,6.5725,226.09,226.08,2.2114]
[1734453744896,3.62,226.09,226.08,2.2114]
[1734453745990,5.27898339,226.12,226.08,2.2114]
[1734453746192,3.62,226.15,226.0,16.47842718]
[1734453746496,67.11842718,226.2,226.08,16.47842718]
[1734453746497,3.62,226.2,226.08,16.47842718]
[1734453746793,6.2285,226.23,226.01,4.46528998]
[1734453746794,3.1095,226.23,226.22,2.2101]
[1734453746995,3.62,226.23,226.22,2.2101]
[1734453747791,9.1072,226.32,226.12,16.47842718]
[1734453747991,3.62,226.31,226.16,16.47842718]
[1734453748588,3.62,226.31,226.2,2.2102]
[1734453748794,3.62,226.31,226.16,16.47842718]
[1734453749289,2.2093,226.3,226.16,16.47842718]
[1734453749488,3.62,226.29,226.16,16.47842718]
[1734453749689,3.62,226.28,226.2,16.47842718]
[1734453749894,6.2285,226.32,226.2,16.47842718]
[1734453750096,3.62,226.31,226.2,16.47842718]
[1734453751397,3.62,226.31,226.21,2.9328]
[1734453752394,3.62,226.31,226.28,2.2095]
[1734453752590,2.2084,226.39,226.24,16.47842718]
[1734453752797,3.62,226.38,226.24,16.47842718]
[1734453753292,2.2084,226.39,226.24,16.47842718]
[1734453753499,5.8285,226.38,226.24,16.47842718]
[1734453753700,11.11136762,226.38,226.24,16.47842718]
[1734453753900,8.90286762,226.38,226.31,2.2092]
[1734453754396,8.90286762,226.38,226.24,16.47842718]
[1734453754601,25.3812948,226.38,226.21,5.8937]
[1734453754792,25.3812948,226.38,226.21,2.9328]
[1734453755300,2.209,226.34,226.21,2.9328]
[1734453755495,25.3812948,226.38,226.21,2.9328]
[1734453755892,2.2094,226.29,226.2,16.47842718]
[1734453756093,3.62,226.28,226.2,16.47842718]
[1734453756396,3.62,226.27,226.2,16.47842718]
[1734453756591,3.62,226.26,226.24,2.2099]
[1734453757301,3.62,226.26,226.16,16.47842718]
[1734453757499,3.62,226.26,226.17,5.3793762]
[1734453757705,3.62,226.26,226.25,2.2098]
[1734453758999,3.62,226.31,226.28,2.2094]
[1734453759507,3.62,226.31,226.24,16.47842718]
[1734453761104,3.62,226.31,226.3,2.2093]
[1734453761306,3.62,226.31,226.24,16.47842718]
[1734453761707,3.62,226.31,226.17,5.3793762]
[1734453762005,3.62,226.31,226.17,21.85780338]
[1734453763012,16.47842718,226.29,226.13,16.47842718]
[1734453763313,2.2099,226.24,226.18,2.2105]
[1734453763509,3.6,226.23,226.18,2.2105]
[1734453764706,5.81,226.23,226.09,16.47842718]
[1734453765209,3.6,226.23,226.09,16.47842718]
[1734453765411,2.9874,226.22,226.06,2.8572]
[1734453765714,2.2103,226.2,226.13,2.2109]
[1734453765914,16.47842718,226.21,226.05,16.47842718]
[1734453766406,16.47842718,226.17,226.0,2.9529]
[1734453766611,9.6019,226.16,226.0,2.9529]
[1734453767012,2.211,226.13,226.06,2.2116]
[1734453767513,2.2108,226.15,226.0,19.43132718]
[1734453769007,2.2109,226.14,226.0,19.43132718]
[1734453769614,2.2109,226.14,226.04,2.2118]
[1734453769819,2.211,226.13,226.0,2.9529]
[1734453770616,2.211,226.13,226.07,2.2115]
[1734453770823,9.6019,226.16,226.0,2.9529]
[1734453771421,2.2109,226.14,226.0,2.9529]
[1734453771621,9.6019,226.16,226.0,2.9529]
[1734453772015,16.47842718,226.13,225.94,16.47842718]
[1734453772318,16.47842718,226.09,225.9,19.45292718]
[1734453772518,3.6,226.08,225.9,19.45292718]
[1734453773022,2.2119,226.04,225.9,19.45292718]
[1734453773321,3.6,226.08,225.9,24.75563561]
[1734453774020,2.2121,226.02,225.96,2.2126]
[1734453774220,3.6,226.01,225.9,24.75563561]
[1734453774520,3.6,226.0,225.95,2.2127]
[1734453774723,3.6,225.99,225.95,2.2127]
[1734453774923,3.6,225.99,225.9,19.45292718]
[1734453775520,3.6,225.99,225.86,19.45822718]
[1734453776131,3.6,225.99,225.94,2.2128]
[1734453776452,3.6,225.98,225.86,19.45822718]
[1734453776678,5.9542,226.04,225.86,19.45822718]
[1734453776679,3.6,225.97,225.89,2.2133]
[1734453776952,3.6,225.96,225.86,24.8551903]
[1734453777147,2.2121,226.02,225.86,24.8551903]
[1734453777148,3.6,225.95,225.86,24.8551903]
[1734453777354,3.6,225.95,225.94,2.2128]
[1734453780263,8.166,226.04,225.9,16.47842718]
[1734453780460,3.6,226.03,225.94,16.47842718]
[1734453781164,3.6,226.03,225.9,16.47842718]
[1734453781647,3.6,226.03,225.91,2.9289]
[1734453782050,2.2122,226.01,225.91,2.9289]
[1734453782863,2.2122,226.01,225.95,2.2127]
[1734453783252,2.8574,226.02,225.86,24.8551903]
[1734453783466,2.8574,226.02,225.87,4.45226393]
[1734453783755,2.8574,226.02,225.86,24.8551903]
[1734453783947,2.2124,225.98,225.91,2.213]
[1734453784145,2.2124,225.98,225.86,16.47842718]
[1734453784355,2.2124,225.98,225.82,19.41432718]
[1734453784561,2.2124,225.98,225.93,2.2129]
[1734453784965,2.2123,225.99,225.93,2.2129]
[1734453785459,2.8516,225.98,225.93,2.2129]
[1734453785853,2.8516,225.98,225.84,4.45212071]
[1734453786063,2.8516,225.98,225.94,2.2128]
[1734453786955,2.8516,225.98,225.82,19.41432718]
[1734453787153,16.47842718,225.97,225.82,2.9359]
[1734453787366,3.6,225.96,225.82,2.9359]
[1734453787664,2.2129,225.94,225.82,2.9359]
[1734453788163,3.6,225.96,225.78,16.47842718]
[1734453788368,3.6,225.96,225.85,2.2136]
[1734453788369,2.2133,225.9,225.85,2.2136]
[1734453788665,3.6,225.89,225.75,2.9604]
[1734453788868,2.2136,225.86,225.81,2.214]
[1734453789060,3.6,225.88,225.75,2.9604]
[1734453789665,5.8134,225.88,225.75,2.9604]
[1734453789867,3.6,225.88,225.75,2.9604]
[1734453790362,3.6,225.87,225.75,2.9604]
[1734453790654,2.2138,225.85,225.8,2.2142]
[1734453790858,3.6,225.87,225.75,2.9604]
[1734453791059,3.6,225.87,225.69,4.38979033]
[1734453791253,2.9194,225.86,225.7,16.47842718]
[1734453791749,2.9194,225.86,225.71,5.4199276]
[1734453792350,2.9194,225.86,225.77,2.2144]
[1734453792351,2.2138,225.84,225.77,2.2144]
[1734453792550,2.2138,225.84,225.71,5.4199276]
[1734453793352,2.9194,225.86,225.7,16.47842718]
[1734453793553,16.47842718,225.85,225.66,16.47842718]
[1734453794647,2.2143,225.8,225.71,2.215]
[1734453794852,16.47842718,225.85,225.66,16.47842718]
[1734453794853,3.6,225.79,225.66,16.47842718]
[1734453795155,3.6,225.78,225.66,16.47842718]
[1734453795348,3.6,225.77,225.71,2.215]
[1734453795548,3.6,225.76,225.66,16.47842718]
[1734453795743,16.47842718,225.85,225.64,5.9291]
[1734453795744,3.6,225.75,225.64,5.9291]
[1734453795959,2.9194,225.86,225.64,5.9291]
[1734453795960,3.6,225.74,225.64,2.8828]
[1734453796156,3.6,225.73,225.64,2.8828]
[1734453796444,3.6,225.72,225.64,2.8828]
[1734453796652,3.6,225.71,225.64,2.8828]
[1734453796847,3.6,225.7,225.64,2.8828]
[1734453797045,3.6,225.69,225.64,2.8828]
[1734453797243,3.6,225.68,225.61,2.83299]
[1734453797446,3.6,225.67,225.61,0.61699]
[1734453797648,3.6,225.66,225.61,0.61699]
[1734453797859,3.6,225.65,225.61,0.61699]
[1734453798151,3.6,225.64,225.61,0.61699]
[1734453798355,20.07842718,225.63,225.47,10.88725103]
[1734453798555,2.2164,225.58,225.51,2.217]
[1734453798747,2.9411,225.62,225.48,5.69665431]
[1734453798947,3.58,225.61,225.48,5.69665431]
[1734453799150,3.58,225.61,225.43,21.82700783]
[1734453799652,2.2162,225.6,225.52,2.2169]
[1734453799861,3.58,225.61,225.43,21.82700783]
[1734453800152,2.2164,225.58,225.49,2.2172]
[1734453800354,3.58,225.61,225.46,16.47842718]
[1734453800751,20.05842718,225.61,225.43,5.34858065]
[1734453800957,20.05842718,225.61,225.47,2.2173]
[1734453801648,20.05842718,225.61,225.48,2.2173]
[1734453802051,16.47842718,225.57,225.48,2.2173]
[1734453802257,2.2167,225.55,225.49,2.2172]
[1734453802455,3.58,225.54,225.49,2.2172]
[1734453803358,3.58,225.54,225.51,2.2169]
[1734453803654,3.58,225.53,225.42,21.90455472]
[1734453803958,3.58,225.54,225.46,16.47842718]
[1734453804164,3.0566,225.61,225.56,2.2165]
[1734453804356,3.58,225.6,225.46,16.47842718]
[1734453804663,3.58,225.59,225.45,16.47842718]
[1734453805358,2.2165,225.57,225.42,5.42612754]
[1734453805554,3.58,225.59,225.42,5.42612754]
[1734453805959,3.58,225.59,225.47,2.2174]
[1734453806563,3.58,225.59,225.45,16.47842718]
[1734453806865,3.58,225.59,225.42,5.42612754]
[1734453806866,16.47842718,225.57,225.42,5.42612754]
[1734453807261,16.47842718,225.57,225.41,2.988]
[1734453807461,3.58,225.59,225.37,5.7859]
[1734453807462,16.47842718,225.53,225.37,3.1507]
[1734453807661,3.58,225.52,225.37,6.1858]
[1734453808061,3.58,225.52,225.44,2.2176]
[1734453808364,3.58,225.52,225.37,6.1858]
[1734453808561,3.58,225.51,225.4,16.47842718]
[1734453808767,3.58,225.5,225.49,2.2172]
[1734453809359,3.58,225.53,225.44,16.47842718]
[1734453809560,3.0393,225.6,225.44,16.47842718]
[1734453809769,3.58,225.59,225.44,16.47842718]
[1734453810161,7.35212424,225.58,225.48,2.2173]
[1734453810359,3.58,225.59,225.39,16.47842718]
[1734453810360,9.56862424,225.57,225.39,16.47842718]
[1734453810663,16.47842718,225.53,225.45,2.2176]
[1734453810862,6.40774009,225.52,225.37,3.0351]
[1734453811063,7.35212424,225.51,225.37,3.0351]
[1734453812167,2.82774009,225.5,225.37,3.0351]
[1734453812468,2.82774009,225.49,225.37,3.0351]
[1734453812663,7.35212424,225.48,225.43,2.2178]
[1734453812964,7.35212424,225.47,225.43,2.2178]
[1734453813174,7.35212424,225.46,225.43,2.2178]
[1734453813367,10.93212424,225.45,225.43,2.2178]
[1734453813664,3.58,225.45,225.42,2.2179]
[1734453813862,7.2187519,225.44,225.37,3.0351]
[1734453814367,7.2187519,225.44,225.4,2.2181]
[1734453815870,3.58,225.45,225.4,2.2181]
[1734453816274,3.58,225.45,225.34,0.3329]
[1734453816469,20.05842718,225.45,225.34,0.3329]
[1734453817067,20.05842718,225.45,225.37,2.2184]
[1734453817568,20.05842718,225.45,225.34,0.3329]
[1734453817773,2.77808235,225.44,225.34,0.3329]
[1734453818072,4.44493176,225.44,225.34,0.3329]
[1734453818267,7.22377013,225.43,225.34,0.3329]
[1734453818465,2.2184,225.38,225.34,0.3329]
[1734453818664,7.22377013,225.37,225.34,0.3329]
[1734453818872,8.045397,225.36,225.34,0.3329]
[1734453819069,7.22377013,225.35,225.34,0.3329]
[1734453819665,7.22377013,225.35,225.3,1.93075182]
[1734453819869,17.61054891,225.34,225.3,1.93075182]
[1734453820170,14.83217578,225.33,225.3,1.93075182]
[1734453820371,17.61054891,225.32,225.3,1.93075182]
[1734453820669,2.8738,225.4,225.3,2.2191]
[1734453820670,7.22377013,225.31,225.3,2.2191]
[1734453820870,3.6,225.39,225.29,2.8501]
[1734453821076,7.55699999,225.31,225.29,2.8501]
[1734453821279,2.90653846,225.3,225.29,5.0693]
[1734453821668,4.65046153,225.38,225.29,2.8501]
[1734453821871,13.97812362,225.37,225.29,2.8501]
[1734453822070,10.37812362,225.36,225.29,2.8501]
[1734453822276,3.6,225.37,225.29,2.8501]
[1734453822277,10.37812362,225.35,225.29,2.8501]
[1734453822572,3.99158601,225.34,225.29,2.8501]
[1734453822789,3.6,225.37,225.29,2.8501]
[1734453822971,10.37855111,225.36,225.29,2.8501]
[1734453824073,10.38047782,225.35,225.29,2.8501]
[1734453824273,3.99249147,225.36,225.29,2.8501]
[1734453824470,10.382638,225.35,225.29,2.8501]
[1734453824666,3.99377339,225.34,225.29,2.8501]
[1734453824871,3.99377339,225.33,225.29,2.8501]
[1734453825070,3.6,225.37,225.29,2.8501]
[1734453825071,3.6,225.37,225.36,2.2185]
[1734453825268,6.38939434,225.37,225.36,2.2185]
[1734453825477,13.9827658,225.37,225.29,19.32852718]
[1734453825681,3.99337146,225.36,225.29,19.32852718]
[1734453825881,3.6,225.37,225.29,19.32852718]
[1734453826077,2.2175,225.46,225.29,19.32852718]
[1734453826078,3.99299244,225.36,225.29,19.32852718]
[1734453826275,2.2175,225.46,225.39,2.2182]
[1734453826476,23.82695867,225.45,225.39,2.2182]
[1734453826774,15.79913841,225.44,225.39,2.2182]
[1734453827082,2.2175,225.46,225.39,2.2182]
[1734453827083,6.63767179,225.43,225.39,2.2182]
[1734453827279,19.41086819,225.42,225.41,2.218]
[1734453827576,13.99813198,225.42,225.41,2.218]
[1734453827778,21.64137102,225.42,225.41,2.218]
[1734453828183,24.41349192,225.42,225.41,2.218]
[1734453828384,21.64137102,225.42,225.41,2.218]
[1734453828878,13.99813198,225.42,225.41,2.218]
[1734453829273,16.7728382,225.42,225.41,2.218]
[1734453829873,13.1728382,225.42,225.41,2.218]
[1734453830075,21.19275643,225.42,225.41,2.218]
[1734453830276,21.19275643,225.42,225.33,2.2187]
[1734453830581,17.62112868,225.41,225.29,2.8501]
[1734453830874,7.2229967,225.4,225.29,2.8501]
[1734453831074,17.62112868,225.39,225.29,2.8501]
[1734453831282,17.62635345,225.38,225.29,2.8501]
[1734453831581,13.17620763,225.37,225.29,2.8501]
[1734453831780,15.90024576,225.36,225.29,2.8501]
[1734453831974,13.12217011,225.35,225.29,2.8501]
[1734453832287,13.12217011,225.34,225.29,2.8501]
[1734453832475,13.12217011,225.33,225.29,2.8501]
[1734453832676,13.12217011,225.32,225.29,2.8501]
[1734453832979,3.58,225.42,225.29,2.8501]
[1734453833281,16.31330671,225.41,225.29,2.8501]
[1734453833476,16.31330671,225.4,225.29,2.8501]
[1734453833779,16.31330671,225.39,225.29,2.8501]
[1734453833976,16.31330671,225.38,225.29,2.8501]
[1734453834177,16.31330671,225.37,225.29,2.8501]
[1734453834376,3.58,225.39,225.35,2.2186]
[1734453834377,16.31330671,225.36,225.35,2.2186]
[1734453835982,13.58619837,225.36,225.35,2.2186]
[1734453836786,3.58,225.39,225.38,2.2183]
[1734453837082,19.90996015,225.39,225.38,2.2183]
[1734453837284,19.90996015,225.39,225.29,2.8501]
[1734453837484,16.32996015,225.38,225.29,2.8501]
[1734453837679,16.32996015,225.37,225.29,2.8501]
[1734453837884,16.32996015,225.36,225.35,2.2186]
[1734453838185,16.32996015,225.36,225.29,2.8501]
[1734453838386,16.32996015,225.35,225.29,2.8501]
[1734453838575,16.32996015,225.34,225.29,2.8501]
[1734453838776,16.32996015,225.33,225.29,2.8501]
[1734453838978,16.32996015,225.32,225.29,2.8501]
[1734453839282,16.32996015,225.31,225.29,2.8501]
[1734453839580,16.32996015,225.3,225.29,5.0693]
[1734453839880,16.32996015,225.3,225.29,2.2192]
[1734453840085,9.06031647,225.3,225.29,2.2192]
[1734453840285,16.35686397,225.3,225.29,2.2192]
[1734453840876,11.86668089,225.3,225.29,2.2192]
[1734453841083,9.06031647,225.3,225.29,2.2192]